fUSD/lending_fUSD_20260630
["ID","MTS","AMOUNT","RATE_DAILY","PERIOD"]
[426770898,1782803444000,-3651.0,0.0001711,2]
[426770908,1782803444000,-2517.0255,0.00017517,2]
[426770905,1782803444000,-283.0,0.00017379,2]
[426770903,1782803444000,-150.0,0.00017379,2]
[426770892,1782803444000,-1362.0,0.00016992,2]
[426770938,1782803444000,-174.815115,0.000182,2]
[426770992,1782803444000,-151.0,0.00019178,2]
[426770939,1782803444000,-501.0,0.00018216,3]
[426770968,1782803444000,-151.0,0.00018905,2]
[426770971,1782803444000,-151.0,0.00018905,2]
[426770977,1782803444000,-490.0,0.00019,2]
[426770978,1782803444000,-560.0,0.00019,2]
[426770976,1782803444000,-257.0,0.00019,2]
[426770979,1782803444000,-182.0,0.00019,2]
[426770972,1782803444000,-151.0,0.00018905,2]
[426770982,1782803444000,-152.0,0.00019,2]
[426770973,1782803444000,-501.0,0.00018918,4]
[426770948,1782803444000,-16300.0,0.000189,6]
[426770980,1782803444000,-228.0,0.00019,2]
[426770975,1782803444000,-158.0,0.00019,2]
[426770969,1782803444000,-151.0,0.00018905,2]
[426770981,1782803444000,-701.0,0.00019,2]
[426770994,1782803444000,-151.0,0.00019178,2]
[426770985,1782803444000,-178.19,0.000191,2]
[426770995,1782803444000,-151.0,0.00019178,2]
[426770983,1782803444000,-155.0,0.00019,2]
[426770988,1782803444000,-151.0,0.00019178,2]
[426770990,1782803444000,-151.0,0.00019178,2]
[426770987,1782803444000,-201.0,0.00019148,2]
[426770989,1782803444000,-151.0,0.00019178,2]
[426770986,1782803444000,-4036.0028236,0.00019132,2]
[426770993,1782803444000,-151.0,0.00019178,2]
[426770991,1782803444000,-151.0,0.00019178,2]
[426770996,1782803444000,-151.0,0.00019178,2]
[426770984,1782803444000,-956.0,0.00019,2]
[426770970,1782803444000,-151.0,0.00018905,2]
[426770974,1782803444000,-1798.09,0.00018999,2]
[426770966,1782803444000,-172.50867144,0.00018905,2]
[426770937,1782803444000,-197.241874,0.00018183,2]
[426770944,1782803444000,-300.0,0.00018752,2]
[426770967,1782803444000,-151.0,0.00018905,2]
[426770945,1782803444000,-300.0,0.00018752,2]
[426770947,1782803444000,-266.6,0.000189,8]
[426770941,1782803444000,-174.815115,0.000184,2]
[426770942,1782803444000,-16734.99177886,0.00018462,2]
[426770946,1782803444000,-110435.0,0.00018753,2]
[426770943,1782803444000,-12362.35007204,0.00018698,2]
[426770949,1782803444000,-500.0,0.00018905,2]
[426770953,1782803444000,-151.0,0.00018905,2]
[426770958,1782803444000,-1500.0,0.00018905,2]
[426770952,1782803444000,-151.0,0.00018905,2]
[426770940,1782803444000,-1500.0,0.00018357,2]
[426770950,1782803444000,-151.0,0.00018905,2]
[426770951,1782803444000,-2081.91032381,0.00018905,2]
[426770965,1782803444000,-151.0,0.00018905,2]
[426770962,1782803444000,-151.0,0.00018905,2]
[426770964,1782803444000,-151.0,0.00018905,2]
[426770960,1782803444000,-151.0,0.00018905,2]
[426770961,1782803444000,-151.0,0.00018905,2]
[426770963,1782803444000,-151.0,0.00018905,2]
[426770954,1782803444000,-151.0,0.00018905,2]
[426770956,1782803444000,-151.0,0.00018905,2]
[426770957,1782803444000,-151.0,0.00018905,2]
[426770955,1782803444000,-151.0,0.00018905,2]
[426770959,1782803444000,-151.0,0.00018905,2]
[426771012,1782803445000,-151.0,0.00019178,2]
[426771019,1782803445000,-1500.0,0.00019453,2]
[426771010,1782803445000,-151.0,0.00019178,2]
[426771013,1782803445000,-151.0,0.00019178,2]
[426771016,1782803445000,-250.59121503,0.0001929,2]
[426771011,1782803445000,-151.0,0.00019178,2]
[426771014,1782803445000,-255.668884,0.00019178,2]
[426771015,1782803445000,-2081.91032381,0.00019179,2]
[426771018,1782803445000,-2081.91032381,0.00019453,2]
[426771008,1782803445000,-151.0,0.00019178,2]
[426771017,1782803445000,-518.5,0.00019453,2]
[426771007,1782803445000,-151.0,0.00019178,2]
[426771003,1782803445000,-151.0,0.00019178,2]
[426771004,1782803445000,-151.0,0.00019178,2]
[426771001,1782803445000,-151.0,0.00019178,2]
[426771000,1782803445000,-151.0,0.00019178,2]
[426771002,1782803445000,-151.0,0.00019178,2]
[426771006,1782803445000,-262.692584,0.00019178,2]
[426770998,1782803445000,-151.0,0.00019178,2]
[426770999,1782803445000,-151.0,0.00019178,2]
[426770997,1782803445000,-151.0,0.00019178,2]
[426771020,1782803445000,-500.0,0.0001947,2]
[426771009,1782803445000,-151.0,0.00019178,2]
[426771024,1782803445000,-2081.91032381,0.00019727,2]
[426771005,1782803445000,-151.0,0.00019178,2]
[426771028,1782803445000,-500.0,0.00019999,2]
[426771021,1782803445000,-304.91975312,0.00019509,2]
[426771044,1782803445000,-2000.0,0.00014,2]
[426771046,1782803445000,-24441.96969032,0.0002,2]
[426771045,1782803445000,-2088.87030968,0.0002,2]
[426771042,1782803445000,-303.54,9.867e-05,2]
[426771043,1782803445000,-303.54,9.986e-05,2]
[426771040,1782803445000,-303.54,9.629e-05,2]
[426771041,1782803445000,-303.54,9.748e-05,2]
[426771037,1782803445000,-1226.63201067,0.0002,2]
[426771036,1782803445000,-412.81193721,0.0002,2]
[426771047,1782803445000,-1411.596,0.0002,2]
[426771038,1782803445000,-634.49767965,0.0002,2]
[426771034,1782803445000,-179.79765146,0.0002,2]
[426771022,1782803445000,-927.0,0.00019559,5]
[426771025,1782803445000,-350.0,0.00019831,2]
[426771035,1782803445000,-26069.4191244,0.0002,2]
[426771027,1782803445000,-1278.0,0.00019992,2]
[426771026,1782803445000,-1362.0,0.00019992,2]
[426771023,1782803445000,-501.0,0.00019621,5]
[426771030,1782803445000,-500.0,0.00019999,2]
[426771029,1782803445000,-500.0,0.00019999,2]
[426771032,1782803445000,-2335.24751803,0.0002,2]
[426771033,1782803445000,-1562.52999547,0.0002,2]
[426771031,1782803445000,-1798.09,0.00019999,2]
[426771056,1782803447000,-41.9539119,0.0002,2]
[426771049,1782803447000,-1074.79929104,0.0002,2]
[426771051,1782803447000,-3007.65481356,0.0002,7]
[426771050,1782803447000,-1319.12674086,0.0002,2]
[426771052,1782803447000,-541.54136266,0.0002,2]
[426771055,1782803447000,-374.83658851,0.0002,2]
[426771053,1782803447000,-10996.00859366,0.0002,2]
[426771063,1782803447000,-220.685,0.0001411,2]
[426771054,1782803447000,-4621.1965797,0.0002,2]
[426771062,1782803447000,-160.0,9.51e-05,2]
[426771068,1782803447000,-151.0,0.00019178,2]
[426771069,1782803447000,-166.014942,0.00019178,2]
[426771070,1782803447000,-6562.00839623,0.0002,2]
[426771064,1782803447000,-2742.44262621,0.00017126,2]
[426771065,1782803447000,-151.0,0.00019178,2]
[426771067,1782803447000,-151.0,0.00019178,2]
[426771071,1782803447000,-456.58231527,0.0002,2]
[426771066,1782803447000,-151.0,0.00019178,2]
[426771072,1782803499000,-634.49767965,9.41e-05,2]
[426771073,1782803540000,164.57344781,8.81e-05,7]
[426771078,1782803758000,500.56300905,8.61e-05,2]
[426771079,1782803759000,382.19317398,8.609e-05,2]
[426771080,1782803779000,-1874.059127,9.304e-05,2]
[426771081,1782803832000,-894.0,9.342e-05,2]
[426771082,1782803845000,-250.0,9.384e-05,2]
[426771083,1782803898000,-220.044772,9.342e-05,2]
[426771085,1782803952000,-224.93834682,9.384e-05,2]
[426771087,1782804004000,-253.3915621,9.399e-05,2]
[426771089,1782804058000,-500.0,9.408e-05,2]
[426771090,1782804111000,-206.94327908,9.408e-05,2]
[426771092,1782804165000,-200.0,9.409e-05,2]
[426771093,1782804218000,-500.0,9.409e-05,2]
[426771098,1782804536000,-190.38781675,9.409e-05,2]
[426771099,1782804537000,-296.19447989,9.409e-05,2]
[426771101,1782804537000,-500.0,9.409e-05,2]
[426771102,1782804537000,-500.0,9.409e-05,2]
[426771100,1782804537000,-500.0,9.409e-05,2]
[426771105,1782804537000,-500.0,9.409e-05,2]
[426771104,1782804537000,-500.0,9.409e-05,2]
[426771106,1782804537000,-635.32609154,9.41e-05,2]
[426771107,1782804537000,-1228.31205604,9.41e-05,2]
[426771103,1782804537000,-500.0,9.409e-05,2]
[426771113,1782804560000,-1.18449911,9.482e-05,2]
[426771109,1782804560000,-186.76971355,9.436e-05,2]
[426771108,1782804560000,-3386.74445242,9.41e-05,2]
[426771112,1782804560000,-216.62538722,9.445e-05,2]
[426771114,1782804560000,-1080.21458267,9.482e-05,2]
[426771110,1782804560000,-160.0,9.445e-05,2]
[426771115,1782804560000,-150.0,9.503e-05,2]
[426771116,1782804560000,-160.0,9.545e-05,2]
[426771111,1782804560000,-277.58874476,9.445e-05,2]
[426771117,1782804561000,-42.36663157,9.597e-05,2]
[426771120,1782804590000,-304.12,9.61e-05,2]
[426771119,1782804590000,-304.12,9.604e-05,2]
[426771121,1782804590000,-304.12,9.619e-05,2]
[426771118,1782804590000,-107.63336843,9.597e-05,2]
[426771123,1782804590000,-304.12,9.643e-05,2]
[426771124,1782804590000,-304.12,9.643e-05,2]
[426771125,1782804590000,-225.5745844,9.644e-05,2]
[426771122,1782804590000,-304.12,9.636e-05,2]
[426771174,1782804632000,-304.14,0.00010077,2]
[426771170,1782804632000,-304.14,9.879e-05,2]
[426771169,1782804632000,-304.13,9.879e-05,2]
[426771168,1782804632000,-304.13,9.879e-05,2]
[426771173,1782804632000,-304.14,0.00010077,2]
[426771176,1782804632000,-250.0,0.0001035,2]
[426771175,1782804632000,-150.0,0.00010109,2]
[426771171,1782804632000,-304.13,9.88e-05,2]
[426771166,1782804632000,-304.12,9.878e-05,2]
[426771172,1782804632000,-151.733033,0.0001,2]
[426771178,1782804632000,-300.57,0.00010782,2]
[426771177,1782804632000,-250.0,0.0001035,2]
[426771180,1782804632000,-1937.97,0.00010834,2]
[426771182,1782804632000,-150.0,0.00011155,2]
[426771167,1782804632000,-304.12,9.878e-05,2]
[426771186,1782804632000,-1180.52,0.00011319,2]
[426771187,1782804632000,-1848.57,0.00011481,2]
[426771183,1782804632000,-506.52,0.00011281,2]
[426771184,1782804632000,-715.94,0.00011281,2]
[426771185,1782804632000,-1852.42,0.00011294,2]
[426771188,1782804632000,-1180.52,0.00011596,2]
[426771189,1782804632000,-166.66,0.00011719,2]
[426771181,1782804632000,-1180.52,0.00011043,2]
[426771165,1782804632000,-304.12,9.853e-05,2]
[426771159,1782804632000,-304.12,9.8e-05,2]
[426771164,1782804632000,-150.0,9.853e-05,2]
[426771191,1782804632000,-1180.52,0.00011872,2]
[426771130,1782804632000,-421.79938665,9.409e-05,2]
[426771132,1782804632000,-78.5554156,9.644e-05,2]
[426771134,1782804632000,-304.12,9.663e-05,2]
[426771136,1782804632000,-304.12,9.682e-05,2]
[426771141,1782804632000,-150.0,9.691e-05,2]
[426771138,1782804632000,-304.12,9.69e-05,2]
[426771145,1782804632000,-304.12,9.697e-05,2]
[426771143,1782804632000,-304.13,9.691e-05,2]
[426771151,1782804632000,-304.12,9.744e-05,2]
[426771152,1782804632000,-304.12,9.76e-05,2]
[426771147,1782804632000,-304.12,9.702e-05,2]
[426771150,1782804632000,-304.12,9.722e-05,2]
[426771149,1782804632000,-304.12,9.717e-05,2]
[426771153,1782804632000,-304.12,9.761e-05,2]
[426771156,1782804632000,-304.12,9.775e-05,2]
[426771158,1782804632000,-304.12,9.798e-05,2]
[426771157,1782804632000,-150.0,9.786e-05,2]
[426771154,1782804632000,-304.13,9.761e-05,2]
[426771155,1782804632000,-304.12,9.771e-05,2]
[426771162,1782804632000,-304.12,9.839e-05,2]
[426771163,1782804632000,-304.12,9.851e-05,2]
[426771161,1782804632000,-304.12,9.825e-05,2]
[426771160,1782804632000,-304.12,9.819e-05,2]
[426771192,1782804632000,-212.87,0.00011901,2]
[426771179,1782804632000,-217.46647463,0.00010833,2]
[426771195,1782804632000,-1180.52,0.00012148,2]
[426771222,1782804632000,-567.5023,0.000137,2]
[426771221,1782804632000,-200.0,0.00013699,2]
[426771223,1782804632000,-902.0,0.00013701,2]
[426771225,1782804632000,-500.0,0.00013704,2]
[426771224,1782804632000,-902.0,0.00013702,2]
[426771226,1782804632000,-500.0,0.00013704,2]
[426771229,1782804632000,-298.341595,0.00014,2]
[426771227,1782804632000,-500.0,0.00013704,2]
[426771232,1782804632000,-151.0,0.00014247,2]
[426771230,1782804632000,-897.0,0.00014001,2]
[426771231,1782804632000,-500.0,0.00014039,2]
[426771228,1782804632000,-196.60447268,0.000138,2]
[426771234,1782804632000,-151.0,0.00014247,2]
[426771235,1782804632000,-151.0,0.00014247,2]
[426771237,1782804632000,-253.21579628,0.00014409,2]
[426771239,1782804632000,-156.07,0.0001456,2]
[426771238,1782804632000,-2699.15,0.0001456,2]
[426771236,1782804632000,-1500.0,0.00014273,2]
[426771241,1782804632000,-500.0,0.00014738,2]
[426771242,1782804632000,-500.0,0.00014738,2]
[426771240,1782804632000,-500.0,0.00014738,2]
[426771243,1782804632000,-603.55800173,0.00014738,2]
[426771190,1782804632000,-846.7,0.00011773,2]
[426771220,1782804632000,-4342.82,0.00013699,2]
[426771219,1782804632000,-172.75699102,0.00013698,2]
[426771233,1782804632000,-151.0,0.00014247,2]
[426771216,1782804632000,-500.0,0.00013698,2]
[426771194,1782804632000,-166.66,0.00011966,2]
[426771218,1782804632000,-3000.0,0.00013698,2]
[426771193,1782804632000,-3104.82,0.00011956,2]
[426771197,1782804632000,-167.15,0.00012329,2]
[426771198,1782804632000,-166.66,0.00012459,2]
[426771201,1782804632000,-500.0,0.00012621,2]
[426771196,1782804632000,-166.66,0.00012212,2]
[426771199,1782804632000,-500.0,0.00012621,2]
[426771203,1782804632000,-500.0,0.00012621,2]
[426771206,1782804632000,-577.62717727,0.00012621,2]
[426771205,1782804632000,-500.0,0.00012621,2]
[426771200,1782804632000,-500.0,0.00012621,2]
[426771202,1782804632000,-500.0,0.00012621,2]
[426771215,1782804632000,-500.0,0.00013698,2]
[426771204,1782804632000,-500.0,0.00012621,2]
[426771213,1782804632000,-907.0,0.00013637,2]
[426771214,1782804632000,-166.66,0.00013659,2]
[426771209,1782804632000,-166.66,0.00012952,2]
[426771210,1782804632000,-151.733033,0.00013287,2]
[426771211,1782804632000,-151.77,0.00013541,2]
[426771208,1782804632000,-1307.06,0.00012869,2]
[426771207,1782804632000,-166.66,0.00012706,2]
[426771212,1782804632000,-882.0,0.00013637,2]
[426771217,1782804632000,-500.0,0.00013698,2]
[426771266,1782804633000,-3819.02472936,0.000161,2]
[426771263,1782804633000,-3819.02472936,0.000159,2]
[426771273,1782804633000,-3819.02472936,0.000164,2]
[426771268,1782804633000,-365.0,0.000161,2]
[426771271,1782804633000,-3819.02472936,0.000162,2]
[426771270,1782804633000,-501.0,0.0001611,2]
[426771272,1782804633000,-200.0,0.00016308,2]
[426771269,1782804633000,-317.0,0.000161,2]
[426771274,1782804633000,-892.0,0.00016438,2]
[426771279,1782804633000,-174.81511501,0.00018,2]
[426771277,1782804633000,-18177.8945,0.00017068,2]
[426771278,1782804633000,-501.0,0.00017613,3]
[426771276,1782804633000,-501.0,0.00016862,2]
[426771280,1782804633000,-1362.0,0.00018159,2]
[426771284,1782804633000,-375.62697963,0.00018259,2]
[426771267,1782804633000,-918.0,0.000161,2]
[426771283,1782804633000,-3565.0,0.00018159,2]
[426771275,1782804633000,-1500.0,0.00016465,2]
[426771265,1782804633000,-1500.0,0.00015917,2]
[426771255,1782804633000,-3819.02472936,0.000152,2]
[426771262,1782804633000,-3819.02472936,0.000158,2]
[426771282,1782804633000,-1231.0,0.00018159,2]
[426771244,1782804633000,-1146.84988933,0.00014739,2]
[426771245,1782804633000,-1500.0,0.00014821,2]
[426771246,1782804633000,-387.0,0.00014829,2]
[426771251,1782804633000,-1278.0,0.00015159,2]
[426771249,1782804633000,-503.00784065,0.00015091,2]
[426771248,1782804633000,-3819.02472936,0.00015,2]
[426771247,1782804633000,-500.0,0.00014999,2]
[426771264,1782804633000,-166.66,0.00015913,2]
[426771250,1782804633000,-1362.0,0.00015159,2]
[426771252,1782804633000,-1231.0,0.00015159,2]
[426771253,1782804633000,-3565.0,0.00015159,2]
[426771256,1782804633000,-3819.02472936,0.000153,2]
[426771260,1782804633000,-620.14666604,0.00015537,2]
[426771258,1782804633000,-3343.0,0.000155,5]
[426771259,1782804633000,-3819.02472936,0.000155,2]
[426771261,1782804633000,-3819.02472936,0.000156,2]
[426771257,1782804633000,-1500.0,0.00015369,2]
[426771254,1782804633000,-1937.97,0.00015167,2]
[426771281,1782804633000,-1278.0,0.00018159,2]
[426771299,1782804633000,-151.0,0.00019204,2]
[426771287,1782804633000,-150.19284954,0.00018356,7]
[426771311,1782804633000,-2300.12316607,0.00019291,2]
[426771309,1782804633000,-500.0,0.0001929,2]
[426771313,1782804633000,-6277.61541563,0.00019291,2]
[426771312,1782804633000,-10051.3,0.00019291,2]
[426771314,1782804633000,-6127.228,0.00019291,2]
[426771316,1782804633000,-316.04377581,0.00019409,2]
[426771317,1782804633000,-3528.586306,0.00019465,2]
[426771315,1782804633000,-32826.27832701,0.00019291,2]
[426771318,1782804633000,-1665.52825905,0.00019479,2]
[426771285,1782804633000,-500.0,0.00018356,7]
[426771322,1782804633000,-500.0,0.00019506,2]
[426771320,1782804633000,-500.0,0.00019506,2]
[426771323,1782804633000,-500.0,0.00019506,2]
[426771321,1782804633000,-500.0,0.00019506,2]
[426771324,1782804633000,-8337.20006054,0.00019506,2]
[426771326,1782804633000,-10177.81243167,0.00019507,2]
[426771325,1782804633000,-1552.81,0.00019506,2]
[426771310,1782804633000,-4182.0,0.00019291,5]
[426771305,1782804633000,-151.0,0.00019204,2]
[426771319,1782804633000,-1371.22131314,0.00019497,2]
[426771308,1782804633000,-200.8224883,0.00019204,2]
[426771286,1782804633000,-475.64643075,0.00018356,7]
[426771291,1782804633000,-350.0,0.00019111,2]
[426771290,1782804633000,-350.0,0.00019014,2]
[426771288,1782804633000,-501.0,0.00018365,4]
[426771293,1782804633000,-500.0,0.00019204,2]
[426771294,1782804633000,-151.0,0.00019204,2]
[426771295,1782804633000,-151.0,0.00019204,2]
[426771292,1782804633000,-501.0,0.00019117,4]
[426771296,1782804633000,-151.0,0.00019204,2]
[426771297,1782804633000,-1665.52825905,0.00019204,2]
[426771303,1782804633000,-151.0,0.00019204,2]
[426771300,1782804633000,-151.0,0.00019204,2]
[426771298,1782804633000,-151.0,0.00019204,2]
[426771301,1782804633000,-151.0,0.00019204,2]
[426771302,1782804633000,-151.0,0.00019204,2]
[426771307,1782804633000,-151.0,0.00019204,2]
[426771304,1782804633000,-151.0,0.00019204,2]
[426771289,1782804633000,-1270.01,0.0001872,2]
[426771306,1782804633000,-151.0,0.00019204,2]
[426771330,1782804637000,-775.32092544,0.0001485,2]
[426771331,1782804637000,-1803.0,0.0001485,2]
[426771332,1782804637000,-599.39946508,0.0001485,2]
[426771352,1782804638000,-186.63461974,0.00019606,2]
[426771350,1782804638000,-507.16772841,0.00019606,2]
[426771351,1782804638000,-323.03412081,0.00019606,2]
[426771349,1782804638000,-500.0,0.00019606,2]
[426771347,1782804638000,-162.1559516,0.00019606,2]
[426771346,1782804638000,-391.2040484,0.00019606,2]
[426771345,1782804638000,-108.7959516,0.00019606,2]
[426771343,1782804638000,-268.91329186,0.00019606,2]
[426771344,1782804638000,-231.08670814,0.00019606,2]
[426771342,1782804638000,-18484.92303834,0.00019597,2]
[426771340,1782804638000,-5771.59044551,0.00019596,2]
[426771339,1782804638000,-16503.24955449,0.00019596,2]
[426771337,1782804638000,-500.0,0.00019506,2]
[426771338,1782804638000,-166.24296833,0.00019507,2]
[426771335,1782804638000,-4986.19639669,0.0001485,2]
[426771336,1782804638000,-7366.41989366,0.0001485,2]
[426771333,1782804638000,-3566.30060923,0.0001485,2]
[426771334,1782804638000,-594.5,0.0001485,2]
[426771354,1782804638000,-500.0,0.00019606,2]
[426771341,1782804638000,-3789.91696166,0.00019597,2]
[426771353,1782804638000,-500.0,0.00019606,2]
[426771348,1782804638000,-337.8440484,0.00019606,2]
[426771355,1782804638000,-509.80487002,0.00019606,2]
[426771358,1782804638000,-500.0,0.00019606,2]
[426771375,1782804638000,-500.0,0.00019606,2]
[426771373,1782804638000,-500.0,0.00019606,2]
[426771374,1782804638000,-500.0,0.00019606,2]
[426771372,1782804638000,-500.0,0.00019606,2]
[426771370,1782804638000,-500.0,0.00019606,2]
[426771366,1782804638000,-500.0,0.00019606,2]
[426771367,1782804638000,-513.91569987,0.00019606,2]
[426771365,1782804638000,-378.81801378,0.00019606,2]
[426771368,1782804638000,-500.76935271,0.00019606,2]
[426771369,1782804638000,-500.0,0.00019606,2]
[426771364,1782804638000,-121.18198622,0.00019606,2]
[426771371,1782804638000,-500.0,0.00019606,2]
[426771359,1782804638000,-500.0,0.00019606,2]
[426771360,1782804638000,-500.0,0.00019606,2]
[426771357,1782804638000,-503.28685372,0.00019606,2]
[426771356,1782804638000,-500.44846455,0.00019606,2]
[426771362,1782804638000,-500.0,0.00019606,2]
[426771361,1782804638000,-500.0,0.00019606,2]
[426771363,1782804638000,-500.0,0.00019606,2]
[426771376,1782804638000,-6.49693364,0.00019606,2]
[426771391,1782804640000,-500.0,0.00019606,2]
[426771382,1782804640000,-493.50306636,0.00019606,2]
[426771384,1782804640000,-500.0,0.00019606,2]
[426771386,1782804640000,-500.0,0.00019606,2]
[426771388,1782804640000,-500.0,0.00019606,2]
[426771389,1782804640000,-306.49693364,0.00019606,2]
[426771383,1782804640000,-500.0,0.00019606,2]
[426771385,1782804640000,-500.0,0.00019606,2]
[426771390,1782804640000,-193.50306636,0.00019606,2]
[426771387,1782804640000,-500.0,0.00019606,2]
[426771393,1782804640000,-379.90810125,0.00019606,2]
[426771398,1782804640000,-500.0,0.00019606,2]
[426771400,1782804640000,-1057.78201256,0.00019607,2]
[426771401,1782804640000,-2107.68645529,0.00019607,2]
[426771399,1782804640000,-43554.46468369,0.00019607,2]
[426771392,1782804640000,-500.0,0.00019606,2]
[426771395,1782804640000,-500.0,0.00019606,2]
[426771396,1782804640000,-500.0,0.00019606,2]
[426771394,1782804640000,-120.09189875,0.00019606,2]
[426771397,1782804640000,-1552.81,0.00019606,2]
[426771406,1782804643000,-500.0,0.00019605,2]
[426771410,1782804643000,-374.83658851,0.00019607,2]
[426771407,1782804643000,-500.0,0.00019606,2]
[426771408,1782804643000,-15756.17037798,0.00019607,2]
[426771411,1782804643000,-4491.5983011,0.00019607,2]
[426771409,1782804643000,-4621.1965797,0.00019607,2]
[426771480,1782804646000,-1187.05600419,0.00018256,2]
[426771479,1782804646000,-6158.67566353,0.00018256,2]
[426771478,1782804646000,-914.0,0.0001485,2]
[426771500,1782804674000,500.0,9.409e-05,2]
[426771503,1782804677000,140.14906812,0.00010833,2]
[426771502,1782804677000,250.01740017,0.00010833,2]
[426771501,1782804677000,500.0,0.00010833,2]
[426771505,1782804716000,177.81,9.309e-05,2]
[426771504,1782804716000,263.58251106,9.309e-05,2]
[426771506,1782804717000,58.60748894,9.309e-05,2]
[426771512,1782804916000,285.15955509,9.352e-05,2]
[426771510,1782804916000,192.97093767,9.352e-05,2]
[426771511,1782804916000,437.73351373,9.352e-05,2]
[426771509,1782804916000,177.82,9.352e-05,2]
[426771508,1782804916000,97.95218537,9.352e-05,2]
[426771513,1782805020000,-574.07886707,9.352e-05,2]
[426771518,1782805073000,-108.34406807,9.352e-05,2]
[426771519,1782805126000,-164.16655572,9.375e-05,2]
[426771520,1782805179000,-1414.044772,9.366e-05,2]
[426771521,1782805233000,-253.3915621,9.415e-05,2]
[426771523,1782805286000,-183.34202905,9.472e-05,2]
[426771524,1782805340000,-1414.044772,9.463e-05,2]
[426771525,1782805341000,805.55359748,8.689e-05,2]
[426771527,1782805392000,-1016.36064232,8.975e-05,2]
[426771532,1782805731000,-500.0,9.467e-05,2]
[426771528,1782805731000,-200.0,9.008e-05,2]
[426771529,1782805731000,-2323.422936,9.387e-05,2]
[426771530,1782805731000,-196.45750739,9.435e-05,2]
[426771531,1782805731000,-500.0,9.467e-05,2]
[426771537,1782805731000,-500.0,9.467e-05,2]
[426771534,1782805731000,-263.43464116,9.467e-05,2]
[426771535,1782805731000,-500.0,9.467e-05,2]
[426771533,1782805731000,-236.56535884,9.467e-05,2]
[426771536,1782805731000,-296.54903417,9.467e-05,2]
[426771538,1782805731000,-436.95655275,9.467e-05,2]
[426771539,1782805731000,-297.97543297,9.467e-05,2]
[426771542,1782805757000,-584.81134229,9.467e-05,2]
[426771541,1782805757000,-593.90384314,9.467e-05,2]
[426771543,1782805757000,-412.90255961,9.467e-05,2]
[426771544,1782805757000,-500.0,9.467e-05,2]
[426771540,1782805757000,-202.02456703,9.467e-05,2]
[426771545,1782805757000,-500.0,9.467e-05,2]
[426771547,1782805757000,-500.0,9.467e-05,2]
[426771548,1782805757000,-489.85528646,9.468e-05,2]
[426771549,1782805757000,-2289.05748634,9.468e-05,2]
[426771546,1782805757000,-500.0,9.467e-05,2]
[426771550,1782805779000,-2008.89624831,9.468e-05,2]
[426771551,1782805810000,-518.8394487,9.468e-05,2]
[426771583,1782805832000,-18041.3807,0.0001109,2]
[426771582,1782805832000,-150.0,0.00010833,2]
[426771587,1782805832000,-605.37651132,0.00011189,2]
[426771585,1782805832000,-152.22653224,0.00011189,2]
[426771586,1782805832000,-500.0,0.00011189,2]
[426771581,1782805832000,-255.0,0.00010435,2]
[426771589,1782805832000,-500.0,0.00011189,2]
[426771588,1782805832000,-500.0,0.00011189,2]
[426771591,1782805832000,-500.0,0.00011189,2]
[426771580,1782805832000,-250.0,0.00010395,2]
[426771600,1782805832000,-166.66,0.00011982,2]
[426771596,1782805832000,-433.0,0.00011478,2]
[426771592,1782805832000,-500.0,0.00011189,2]
[426771595,1782805832000,-350.77136036,0.00011189,2]
[426771590,1782805832000,-250.01740017,0.00011189,2]
[426771594,1782805832000,-500.0,0.00011189,2]
[426771593,1782805832000,-500.0,0.00011189,2]